[Event "2026 Biel Blitz Open"]
[Site "Biel, CH"]
[Date "2026.07.19"]
[Round "11"]
[White "Garcia, Miguel"]
[Black "Tahari, Youcef Nazim"]
[Result "1-0"]
[Board "37"]
[TimeControl "180+2"]
[WhiteFideId "1317431"]
[BlackFideId "282537"]
[WhiteElo "1938"]
[BlackElo "1691"]
[WhiteClock "0:00:35"]
[BlackClock "0:00:08"]
[Variant "Standard"]
[EndDate "2026.07.19"]
[EndTime "15:24:08"]

1. b3 {[%clk 0:03:02]}  g6 {[%clk 0:03:03]} 2. Bb2 {[%clk 0:03:03]}  Nf6 {[%clk 0:03:04]} 3. e3 {[%clk 0:03:02]}  Bg7 {[%clk 0:03:05]}
4. Nf3 {[%clk 0:03:01]}  d5 {[%clk 0:03:06]} 5. Nc3 {[%clk 0:02:56]}  O-O {[%clk 0:03:06]} 6. Be2 {[%clk 0:02:53]}  c5 {[%clk 0:03:07]}
7. O-O {[%clk 0:02:52]}  Nc6 {[%clk 0:03:08]} 8. d4 {[%clk 0:02:42]}  b6 {[%clk 0:03:05]} 9. Ne5 {[%clk 0:02:38]}  Qc7 {[%clk 0:02:31]}
10. Nb5 {[%clk 0:02:27]}  Qb7 {[%clk 0:02:32]} 11. c4 {[%clk 0:02:17]}  cxd4 {[%clk 0:02:14]} 12. Nxc6 {[%clk 0:02:14]}  Qxc6 {[%clk 0:02:13]}
13. Nxd4 {[%clk 0:02:14]}  Qd7 {[%clk 0:01:56]} 14. Bf3 {[%clk 0:02:11]}  Bb7 {[%clk 0:01:56]} 15. cxd5 {[%clk 0:01:47]}  Bxd5 {[%clk 0:01:53]}
16. Rc1 {[%clk 0:01:39]}  Rad8 {[%clk 0:01:32]} 17. Qe2 {[%clk 0:01:31]}  e5 {[%clk 0:01:22]} 18. Bxd5 {[%clk 0:01:26]}  Qxd5 {[%clk 0:01:19]}
19. Nf3 {[%clk 0:01:23]}  Nd7 {[%clk 0:00:56]} 20. Rfd1 {[%clk 0:01:23]}  Qa5 {[%clk 0:00:54]} 21. Rc7 {[%clk 0:01:16]}  Nc5 {[%clk 0:00:37]}
22. Rxd8 {[%clk 0:01:07]}  Rxd8 {[%clk 0:00:38]} 23. Bxe5 {[%clk 0:01:03]}  Bxe5 {[%clk 0:00:37]} 24. Nxe5 {[%clk 0:01:03]}  Rd2 {[%clk 0:00:27]}
25. Qf3 {[%clk 0:00:38]}  Ne6 {[%clk 0:00:07]} 26. Qxf7+ {[%clk 0:00:37]}  Kh8 {[%clk 0:00:08]} 27. Qxh7# {[%clk 0:00:35]} 1-0

[Event "2026 Biel Blitz Open"]
[Site "Biel, CH"]
[Date "2026.07.19"]
[Round "11"]
[White "Langner, Robin"]
[Black "Gautschi, Rudolf"]
[Result "1-0"]
[Board "38"]
[TimeControl "180+2"]
[WhiteFideId "34606190"]
[BlackFideId "1318489"]
[WhiteElo "2059"]
[BlackElo "1857"]
[WhiteClock "0:01:35"]
[BlackClock "0:01:10"]
[Variant "Standard"]
[EndDate "2026.07.19"]
[EndTime "15:21:04"]

1. d4 {[%clk 0:03:02]}  b6 {[%clk 0:03:04]} 2. c4 {[%clk 0:03:03]}  Bb7 {[%clk 0:03:05]} 3. Nc3 {[%clk 0:03:03]}  e6 {[%clk 0:03:06]}
4. e4 {[%clk 0:03:03]}  Nf6 {[%clk 0:03:07]} 5. Bd3 {[%clk 0:03:03]}  Bb4 {[%clk 0:03:07]} 6. f3 {[%clk 0:02:58]}  d6 {[%clk 0:02:57]}
7. Qa4+ {[%clk 0:02:48]}  Nc6 {[%clk 0:02:56]} 8. d5 {[%clk 0:02:47]}  Bxc3+ {[%clk 0:02:52]} 9. bxc3 {[%clk 0:02:48]}  b5 {[%clk 0:02:50]}
10. Qxb5 {[%clk 0:02:34]}  exd5 {[%clk 0:02:37]} 11. cxd5 {[%clk 0:02:35]}  Nxd5 {[%clk 0:02:26]} 12. exd5 {[%clk 0:02:33]}  Qh4+ {[%clk 0:02:21]}
13. g3 {[%clk 0:02:16]}  Qe7+ {[%clk 0:02:22]} 14. Ne2 {[%clk 0:02:08]}  O-O {[%clk 0:01:28]} 15. dxc6 {[%clk 0:01:59]}  Bc8 {[%clk 0:01:27]}
16. O-O {[%clk 0:01:50]}  Bh3 {[%clk 0:01:28]} 17. Re1 {[%clk 0:01:50]}  Qf6 {[%clk 0:01:10]} 18. Qh5 {[%clk 0:01:35]} 1-0

[Event "2026 Biel Blitz Open"]
[Site "Biel, CH"]
[Date "2026.07.19"]
[Round "11"]
[White "Marinkovic, Zoran"]
[Black "Freuler, Roman"]
[Result "1/2-1/2"]
[Board "39"]
[TimeControl "180+2"]
[WhiteFideId "1346083"]
[BlackFideId "1304283"]
[WhiteElo "2037"]
[BlackElo "1852"]
[WhiteClock "0:00:23"]
[BlackClock "0:00:16"]
[Variant "Standard"]
[EndDate "2026.07.19"]
[EndTime "15:29:52"]

1. e4 {[%clk 0:03:03]}  c5 {[%clk 0:03:04]} 2. Nf3 {[%clk 0:03:04]}  d6 {[%clk 0:03:05]} 3. d4 {[%clk 0:03:05]}  cxd4 {[%clk 0:03:06]}
4. Nxd4 {[%clk 0:03:06]}  Nf6 {[%clk 0:03:07]} 5. Nc3 {[%clk 0:03:08]}  Nc6 {[%clk 0:03:09]} 6. Be3 {[%clk 0:03:08]}  Ng4 {[%clk 0:03:07]}
7. Nxc6 {[%clk 0:03:00]}  bxc6 {[%clk 0:02:51]} 8. Qd2 {[%clk 0:02:35]}  Nxe3 {[%clk 0:02:39]} 9. Qxe3 {[%clk 0:02:32]}  e5 {[%clk 0:02:38]}
10. Bc4 {[%clk 0:02:29]}  Be7 {[%clk 0:02:37]} 11. O-O {[%clk 0:02:24]}  O-O {[%clk 0:02:37]} 12. Rad1 {[%clk 0:02:25]}  Qb6 {[%clk 0:02:21]}
13. Qxb6 {[%clk 0:02:16]}  axb6 {[%clk 0:02:22]} 14. a3 {[%clk 0:02:16]}  Bb7 {[%clk 0:02:23]} 15. f3 {[%clk 0:02:14]}  Rfd8 {[%clk 0:02:16]}
16. g3 {[%clk 0:02:02]}  g6 {[%clk 0:01:38]} 17. Kf2 {[%clk 0:02:02]}  Kg7 {[%clk 0:01:40]} 18. h4 {[%clk 0:02:01]}  Rd7 {[%clk 0:01:34]}
19. Rd2 {[%clk 0:02:02]}  Rad8 {[%clk 0:01:35]} 20. Rfd1 {[%clk 0:02:03]}  Bc8 {[%clk 0:01:18]} 21. Bb3 {[%clk 0:01:58]}  Ra7 {[%clk 0:01:15]}
22. Rd3 {[%clk 0:01:46]}  Be6 {[%clk 0:01:16]} 23. Bxe6 {[%clk 0:01:41]}  fxe6 {[%clk 0:01:17]} 24. Rh1 {[%clk 0:01:32]}  h5 {[%clk 0:01:17]}
25. g4 {[%clk 0:01:29]}  hxg4 {[%clk 0:01:15]} 26. fxg4 {[%clk 0:01:29]}  Rh8 {[%clk 0:01:08]} 27. Rdh3 {[%clk 0:01:27]}  d5 {[%clk 0:00:57]}
28. Kg3 {[%clk 0:01:11]}  Bd8 {[%clk 0:00:44]} 29. Re1 {[%clk 0:01:06]}  Rf7 {[%clk 0:00:41]} 30. Re2 {[%clk 0:00:52]}  Rf1 {[%clk 0:00:35]}
31. h5 {[%clk 0:00:45]}  Bg5 {[%clk 0:00:34]} 32. hxg6 {[%clk 0:00:41]}  Rxh3+ {[%clk 0:00:34]} 33. Kxh3 {[%clk 0:00:40]}  Bf4 {[%clk 0:00:31]}
34. Kg2 {[%clk 0:00:29]}  Rc1 {[%clk 0:00:26]} 35. Na4 {[%clk 0:00:31]}  b5 {[%clk 0:00:19]} 36. Nc5 {[%clk 0:00:31]}  Kf6 {[%clk 0:00:14]}
37. exd5 {[%clk 0:00:28]}  exd5 {[%clk 0:00:14]} 38. Nd7+ {[%clk 0:00:27]}  Kxg6 {[%clk 0:00:14]} 39. Nb8 {[%clk 0:00:25]}  Rb1 {[%clk 0:00:11]}
40. Nxc6 {[%clk 0:00:24]}  Rxb2 {[%clk 0:00:12]} 41. Nxe5+ {[%clk 0:00:24]}  Bxe5 {[%clk 0:00:13]} 42. Rxe5 {[%clk 0:00:25]}  Rxc2+ {[%clk 0:00:15]}
43. Kf3 {[%clk 0:00:25]}  Rc3+ {[%clk 0:00:15]} 44. Kf4 {[%clk 0:00:25]}  Rxa3 {[%clk 0:00:15]} 45. Rxd5 {[%clk 0:00:26]}  b4 {[%clk 0:00:16]}
46. Rb5 {[%clk 0:00:27]}  b3 {[%clk 0:00:17]} 47. g5 {[%clk 0:00:24]}  Ra4+ {[%clk 0:00:16]} 48. Ke3 {[%clk 0:00:24]}  b2 {[%clk 0:00:16]}
49. Rxb2 {[%clk 0:00:23]} 1/2-1/2

[Event "2026 Biel Blitz Open"]
[Site "Biel, CH"]
[Date "2026.07.19"]
[Round "11"]
[White "King, Alexander"]
[Black "Floure, Alexan"]
[Result "0-1"]
[Board "40"]
[TimeControl "180+2"]
[WhiteFideId "1352334"]
[BlackFideId "1346610"]
[WhiteElo "1854"]
[BlackElo "1960"]
[WhiteClock "0:00:06"]
[BlackClock "0:02:15"]
[Variant "Standard"]
[EndDate "2026.07.19"]
[EndTime "15:22:30"]

1. d4 {[%clk 0:03:03]}  d5 {[%clk 0:03:04]} 2. c4 {[%clk 0:03:04]}  c6 {[%clk 0:03:05]} 3. Nf3 {[%clk 0:03:05]}  e6 {[%clk 0:03:06]}
4. e3 {[%clk 0:02:54]}  Bd6 {[%clk 0:03:06]} 5. Nc3 {[%clk 0:02:54]}  Ne7 {[%clk 0:03:06]} 6. Bd3 {[%clk 0:02:24]}  Nd7 {[%clk 0:03:05]}
7. O-O {[%clk 0:02:18]}  f5 {[%clk 0:03:05]} 8. b3 {[%clk 0:01:51]}  O-O {[%clk 0:03:05]} 9. Bb2 {[%clk 0:01:51]}  Nf6 {[%clk 0:03:03]}
10. Ne5 {[%clk 0:01:10]}  Qe8 {[%clk 0:02:55]} 11. f3 {[%clk 0:00:49]}  Ng6 {[%clk 0:02:52]} 12. Nxg6 {[%clk 0:00:41]}  Qxg6 {[%clk 0:02:52]}
13. Qc2 {[%clk 0:00:33]}  Qh6 {[%clk 0:02:52]} 14. Rae1 {[%clk 0:00:32]}  Qxh2+ {[%clk 0:02:38]} 15. Kf2 {[%clk 0:00:31]}  Bg3+ {[%clk 0:02:39]}
16. Ke2 {[%clk 0:00:31]}  Qxg2+ {[%clk 0:02:34]} 17. Kd1 {[%clk 0:00:29]}  Qxc2+ {[%clk 0:02:32]} 18. Kxc2 {[%clk 0:00:25]}  Bxe1 {[%clk 0:02:32]}
19. Rxe1 {[%clk 0:00:25]}  Bd7 {[%clk 0:02:32]} 20. Na4 {[%clk 0:00:21]}  b6 {[%clk 0:02:32]} 21. Ba3 {[%clk 0:00:20]}  Rfe8 {[%clk 0:02:31]}
22. Nc3 {[%clk 0:00:15]}  Rac8 {[%clk 0:02:32]} 23. Bd6 {[%clk 0:00:09]}  c5 {[%clk 0:02:32]} 24. Kd2 {[%clk 0:00:04]}  dxc4 {[%clk 0:02:30]}
25. Bxc4 {[%clk 0:00:04]}  Bc6 {[%clk 0:02:20]} 26. Ba6 {[%clk 0:00:04]}  Rcd8 {[%clk 0:02:20]} 27. Bc7 {[%clk 0:00:05]}  Rd7 {[%clk 0:02:20]}
28. Be5 {[%clk 0:00:05]}  Bxf3 {[%clk 0:02:17]} 29. Bb5 {[%clk 0:00:06]}  cxd4 {[%clk 0:02:12]} 30. Bxd7 {[%clk 0:00:06]}  dxc3+ {[%clk 0:02:12]}
31. Kxc3 {[%clk 0:00:07]}  Nxd7 {[%clk 0:02:13]} 32. Bd6 {[%clk 0:00:07]}  Rc8+ {[%clk 0:02:13]} 33. Kb2 {[%clk 0:00:07]}  Be4 {[%clk 0:02:14]}
34. Re2 {[%clk 0:00:07]}  Nf6 {[%clk 0:02:13]} 35. Rd2 {[%clk 0:00:07]}  Nd5 {[%clk 0:02:14]} 36. Bf4 {[%clk 0:00:06]}  h6 {[%clk 0:02:15]} 0-1

[Event "2026 Biel Blitz Open"]
[Site "Biel, CH"]
[Date "2026.07.19"]
[Round "11"]
[White "Rohde, Bernhard"]
[Black "Jud, Marc"]
[Result "0-1"]
[Board "42"]
[TimeControl "180+2"]
[WhiteFideId "1323016"]
[BlackFideId "1309099"]
[WhiteElo "1845"]
[BlackElo "1946"]
[WhiteClock "0:00:05"]
[BlackClock "0:00:31"]
[Variant "Standard"]
[EndDate "2026.07.19"]
[EndTime "15:24:26"]

1. e4 {[%clk 0:03:03]}  c5 {[%clk 0:03:03]} 2. d4 {[%clk 0:03:04]}  cxd4 {[%clk 0:03:04]} 3. Nf3 {[%clk 0:03:05]}  d6 {[%clk 0:03:04]}
4. c3 {[%clk 0:03:03]}  Nf6 {[%clk 0:03:01]} 5. Bd3 {[%clk 0:02:58]}  Nc6 {[%clk 0:02:53]} 6. O-O {[%clk 0:02:53]}  a6 {[%clk 0:02:53]}
7. Bg5 {[%clk 0:02:39]}  Bg4 {[%clk 0:02:49]} 8. h3 {[%clk 0:02:21]}  Bh5 {[%clk 0:02:50]} 9. g4 {[%clk 0:02:11]}  Bg6 {[%clk 0:02:52]}
10. Re1 {[%clk 0:02:09]}  dxc3 {[%clk 0:02:44]} 11. Nxc3 {[%clk 0:02:09]}  h6 {[%clk 0:02:38]} 12. Bxf6 {[%clk 0:02:09]}  gxf6 {[%clk 0:02:39]}
13. e5 {[%clk 0:02:00]}  Bxd3 {[%clk 0:02:26]} 14. Qxd3 {[%clk 0:01:53]}  fxe5 {[%clk 0:02:12]} 15. Nd5 {[%clk 0:01:53]}  e6 {[%clk 0:02:08]}
16. Nc3 {[%clk 0:01:38]}  Be7 {[%clk 0:02:08]} 17. Qe3 {[%clk 0:01:25]}  Qc7 {[%clk 0:02:01]} 18. Nh2 {[%clk 0:01:13]}  d5 {[%clk 0:01:56]}
19. Qe2 {[%clk 0:01:09]}  Qb6 {[%clk 0:01:41]} 20. Na4 {[%clk 0:01:08]}  Qa7 {[%clk 0:01:40]} 21. Rac1 {[%clk 0:01:04]}  Rc8 {[%clk 0:01:29]}
22. Nf3 {[%clk 0:00:54]}  e4 {[%clk 0:01:14]} 23. Ne5 {[%clk 0:00:54]}  Bd6 {[%clk 0:01:02]} 24. Nxc6 {[%clk 0:00:54]}  Rxc6 {[%clk 0:00:59]}
25. b3 {[%clk 0:00:43]}  Ke7 {[%clk 0:00:58]} 26. Qb2 {[%clk 0:00:40]}  e5 {[%clk 0:00:53]} 27. Rxc6 {[%clk 0:00:33]}  bxc6 {[%clk 0:00:54]}
28. Kg2 {[%clk 0:00:27]}  Qd4 {[%clk 0:00:48]} 29. Qc2 {[%clk 0:00:25]}  c5 {[%clk 0:00:47]} 30. Rd1 {[%clk 0:00:23]}  Qb4 {[%clk 0:00:38]}
31. Rxd5 {[%clk 0:00:22]}  Rc8 {[%clk 0:00:34]} 32. Qd2 {[%clk 0:00:18]}  Qxd2 {[%clk 0:00:31]} 33. Rxd2 {[%clk 0:00:19]}  Rc6 {[%clk 0:00:31]}
34. Rc2 {[%clk 0:00:15]}  Ke6 {[%clk 0:00:28]} 35. b4 {[%clk 0:00:16]}  c4 {[%clk 0:00:29]} 36. Nb2 {[%clk 0:00:14]}  c3 {[%clk 0:00:28]}
37. Na4 {[%clk 0:00:15]}  Bxb4 {[%clk 0:00:27]} 38. a3 {[%clk 0:00:13]}  Ba5 {[%clk 0:00:28]} 39. Kg3 {[%clk 0:00:09]}  Kd5 {[%clk 0:00:29]}
40. Kh4 {[%clk 0:00:09]}  Kd4 {[%clk 0:00:29]} 41. Kh5 {[%clk 0:00:08]}  Kd3 {[%clk 0:00:30]} 42. Rxc3+ {[%clk 0:00:06]}  Bxc3 {[%clk 0:00:30]}
43. Nxc3 {[%clk 0:00:05]}  Kxc3 {[%clk 0:00:31]} 0-1

[Event "2026 Biel Blitz Open"]
[Site "Biel, CH"]
[Date "2026.07.19"]
[Round "11"]
[White "Delion, Helge"]
[Black "Hajduk, Tomasz"]
[Result "0-1"]
[Board "43"]
[TimeControl "180+2"]
[WhiteFideId "12914568"]
[BlackFideId "21811415"]
[WhiteElo "1911"]
[BlackElo "1791"]
[WhiteClock "0:00:12"]
[BlackClock "0:00:53"]
[Variant "Standard"]
[EndDate "2026.07.19"]
[EndTime "15:28:24"]

1. e4 {[%clk 0:03:02]}  c5 {[%clk 0:03:03]} 2. Nf3 {[%clk 0:03:03]}  d6 {[%clk 0:03:05]} 3. d4 {[%clk 0:03:03]}  cxd4 {[%clk 0:03:06]}
4. Nxd4 {[%clk 0:03:04]}  Nf6 {[%clk 0:03:07]} 5. Nc3 {[%clk 0:03:05]}  a6 {[%clk 0:03:09]} 6. f4 {[%clk 0:03:05]}  e5 {[%clk 0:03:07]}
7. Nf3 {[%clk 0:03:05]}  Nbd7 {[%clk 0:03:01]} 8. a4 {[%clk 0:03:03]}  Be7 {[%clk 0:02:54]} 9. Bd3 {[%clk 0:03:03]}  O-O {[%clk 0:02:55]}
10. O-O {[%clk 0:03:04]}  Qb6+ {[%clk 0:02:46]} 11. Kh1 {[%clk 0:03:03]}  exf4 {[%clk 0:02:38]} 12. a5 {[%clk 0:02:32]}  Qc7 {[%clk 0:02:20]}
13. Bxf4 {[%clk 0:02:31]}  Ne5 {[%clk 0:02:21]} 14. Nd4 {[%clk 0:02:18]}  Bg4 {[%clk 0:02:19]} 15. Qe1 {[%clk 0:02:17]}  Rac8 {[%clk 0:02:10]}
16. h3 {[%clk 0:02:13]}  Bd7 {[%clk 0:02:04]} 17. Nf5 {[%clk 0:02:09]}  Bxf5 {[%clk 0:02:00]} 18. exf5 {[%clk 0:02:09]}  Nxd3 {[%clk 0:02:00]}
19. cxd3 {[%clk 0:02:08]}  Rfe8 {[%clk 0:02:01]} 20. Qf2 {[%clk 0:01:49]}  Qc5 {[%clk 0:01:48]} 21. Qxc5 {[%clk 0:01:40]}  dxc5 {[%clk 0:01:49]}
22. Rae1 {[%clk 0:01:17]}  Bf8 {[%clk 0:01:49]} 23. Be5 {[%clk 0:01:06]}  Nd7 {[%clk 0:01:44]} 24. Bg3 {[%clk 0:00:57]}  Nb8 {[%clk 0:01:43]}
25. Nd5 {[%clk 0:00:53]}  Nc6 {[%clk 0:01:43]} 26. f6 {[%clk 0:00:49]}  g6 {[%clk 0:01:37]} 27. Rxe8 {[%clk 0:00:41]}  Rxe8 {[%clk 0:01:38]}
28. Bc7 {[%clk 0:00:37]}  Re2 {[%clk 0:01:37]} 29. b3 {[%clk 0:00:33]}  Nd4 {[%clk 0:01:37]} 30. Rc1 {[%clk 0:00:25]}  Nxb3 {[%clk 0:01:37]}
31. Rc3 {[%clk 0:00:24]}  Nd4 {[%clk 0:01:30]} 32. Ne7+ {[%clk 0:00:23]}  Bxe7 {[%clk 0:01:29]} 33. fxe7 {[%clk 0:00:23]}  Rxe7 {[%clk 0:01:29]}
34. Rxc5 {[%clk 0:00:23]}  Nf5 {[%clk 0:01:23]} 35. Bf4 {[%clk 0:00:19]}  Rd7 {[%clk 0:01:21]} 36. Be5 {[%clk 0:00:16]}  f6 {[%clk 0:01:01]}
37. Rc7 {[%clk 0:00:16]}  Rxc7 {[%clk 0:00:58]} 38. Bxc7 {[%clk 0:00:17]}  Kf7 {[%clk 0:00:56]} 39. Kg1 {[%clk 0:00:16]}  Ke6 {[%clk 0:00:55]}
40. Kf2 {[%clk 0:00:16]}  Kd5 {[%clk 0:00:56]} 41. Ke2 {[%clk 0:00:14]}  Nd4+ {[%clk 0:00:54]} 42. Kd2 {[%clk 0:00:13]}  f5 {[%clk 0:00:51]}
43. Kc3 {[%clk 0:00:12]}  Nb5+ {[%clk 0:00:53]} 0-1

[Event "2026 Biel Blitz Open"]
[Site "Biel, CH"]
[Date "2026.07.19"]
[Round "11"]
[White "Alexakis, Dimitrios"]
[Black "Materia, Mario"]
[Result "1-0"]
[Board "44"]
[TimeControl "180+2"]
[WhiteFideId "4200527"]
[BlackFideId "651082241"]
[WhiteElo "1895"]
[BlackElo "1723"]
[WhiteClock "0:00:15"]
[BlackClock "0:00:03"]
[Variant "Standard"]
[EndDate "2026.07.19"]
[EndTime "15:26:35"]

1. e4 {[%clk 0:03:02]}  e5 {[%clk 0:03:03]} 2. Nf3 {[%clk 0:03:02]}  Nc6 {[%clk 0:03:04]} 3. d4 {[%clk 0:03:02]}  exd4 {[%clk 0:03:04]}
4. Nxd4 {[%clk 0:03:02]}  Nf6 {[%clk 0:03:04]} 5. Nc3 {[%clk 0:03:03]}  Bb4 {[%clk 0:03:05]} 6. Nxc6 {[%clk 0:03:01]}  bxc6 {[%clk 0:03:05]}
7. Bd3 {[%clk 0:03:02]}  d5 {[%clk 0:03:06]} 8. exd5 {[%clk 0:03:03]}  O-O {[%clk 0:03:06]} 9. O-O {[%clk 0:03:03]}  cxd5 {[%clk 0:03:07]}
10. Bg5 {[%clk 0:03:03]}  c6 {[%clk 0:03:06]} 11. Ne2 {[%clk 0:03:02]}  Be7 {[%clk 0:03:00]} 12. Nd4 {[%clk 0:02:57]}  c5 {[%clk 0:02:55]}
13. Nc6 {[%clk 0:02:51]}  Qc7 {[%clk 0:02:48]} 14. Nxe7+ {[%clk 0:02:40]}  Qxe7 {[%clk 0:02:48]} 15. Qf3 {[%clk 0:02:29]}  Be6 {[%clk 0:02:36]}
16. Rfe1 {[%clk 0:02:10]}  h6 {[%clk 0:02:37]} 17. Bh4 {[%clk 0:01:51]}  c4 {[%clk 0:02:04]} 18. Bf5 {[%clk 0:01:46]}  Rae8 {[%clk 0:01:01]}
19. c3 {[%clk 0:01:38]}  Qd7 {[%clk 0:00:38]} 20. Bxf6 {[%clk 0:01:28]}  Bxf5 {[%clk 0:00:39]} 21. Qg3 {[%clk 0:01:15]}  Bg6 {[%clk 0:00:39]}
22. Bd4 {[%clk 0:01:15]}  Rxe1+ {[%clk 0:00:36]} 23. Rxe1 {[%clk 0:01:15]}  Re8 {[%clk 0:00:36]} 24. Rxe8+ {[%clk 0:00:57]}  Qxe8 {[%clk 0:00:37]}
25. h4 {[%clk 0:00:56]}  Qe1+ {[%clk 0:00:24]} 26. Kh2 {[%clk 0:00:56]}  Qe2 {[%clk 0:00:12]} 27. Qb8+ {[%clk 0:00:52]}  Kh7 {[%clk 0:00:10]}
28. Qf8 {[%clk 0:00:42]}  f6 {[%clk 0:00:12]} 29. Qd6 {[%clk 0:00:35]}  Be4 {[%clk 0:00:12]} 30. Qg3 {[%clk 0:00:28]}  Qh5 {[%clk 0:00:13]}
31. f3 {[%clk 0:00:28]}  Bf5 {[%clk 0:00:11]} 32. Bxa7 {[%clk 0:00:19]}  Be6 {[%clk 0:00:09]} 33. a4 {[%clk 0:00:19]}  Qf5 {[%clk 0:00:07]}
34. a5 {[%clk 0:00:18]}  Qc2 {[%clk 0:00:07]} 35. Bd4 {[%clk 0:00:15]}  Qxb2 {[%clk 0:00:07]} 36. a6 {[%clk 0:00:16]}  Qa2 {[%clk 0:00:05]}
37. a7 {[%clk 0:00:16]}  Qa6 {[%clk 0:00:03]} 38. Qb8 {[%clk 0:00:15]}  Qd6+ {[%clk 0:00:00]} 39. Qxd6 {[%clk 0:00:15]} 1-0

[Event "2026 Biel Blitz Open"]
[Site "Biel, CH"]
[Date "2026.07.19"]
[Round "11"]
[White "Lupei, Denis"]
[Black "Chu, Wa Ching David"]
[Result "1-0"]
[Board "45"]
[TimeControl "180+2"]
[WhiteFideId "34611231"]
[BlackFideId "6013180"]
[WhiteElo "1890"]
[BlackElo "1673"]
[WhiteClock "0:02:52"]
[BlackClock "0:02:32"]
[Variant "Standard"]
[EndDate "2026.07.19"]
[EndTime "15:28:02"]

1. e4 {[%clk 0:03:03]}  g6 {[%clk 0:03:00]} 2. d4 {[%clk 0:03:03]}  Bg7 {[%clk 0:03:01]} 3. Nc3 {[%clk 0:03:03]}  d6 {[%clk 0:03:02]}
4. g3 {[%clk 0:03:03]}  e6 {[%clk 0:02:59]} 5. Bg2 {[%clk 0:03:03]}  Ne7 {[%clk 0:02:59]} 6. Nge2 {[%clk 0:03:04]}  O-O {[%clk 0:02:56]}
7. O-O {[%clk 0:03:04]}  b6 {[%clk 0:02:30]} 8. e5 {[%clk 0:02:52]}  d5 {[%clk 0:02:32]} 9. Bg5 {[%clk 0:02:52]}  h6 {[%clk 0:02:32]}
10. Be3 {[%clk 0:02:44]}  Bb7 {[%clk 0:02:33]} 11. Qd2 {[%clk 0:02:43]}  Kh7 {[%clk 0:02:34]} 12. f4 {[%clk 0:02:35]}  Nf5 {[%clk 0:02:34]}
13. g4 {[%clk 0:02:34]}  Nxe3 {[%clk 0:02:33]} 14. Qxe3 {[%clk 0:02:35]}  Nd7 {[%clk 0:01:40]} 15. f5 {[%clk 0:02:31]}  Qg5 {[%clk 0:00:47]}
16. Qh3 {[%clk 0:02:04]}  gxf5 {[%clk 0:00:38]} 17. gxf5 {[%clk 0:02:04]}  Rg8 {[%clk 0:00:38]} 18. fxe6 {[%clk 0:01:41]}  fxe6 {[%clk 0:00:38]}
19. Qxe6 {[%clk 0:01:41]}  Nf8 {[%clk 0:00:23]} 20. Qf5+ {[%clk 0:01:38]}  Ng6 {[%clk 0:00:13]} 21. Qxg5 {[%clk 0:01:35]}  hxg5 {[%clk 0:00:14]}
22. Nxd5 {[%clk 0:01:33]}  Rad8 {[%clk 0:00:04]} 23. Nxc7 {[%clk 0:01:28]}  Bxg2 {[%clk 0:00:05]} 24. Kxg2 {[%clk 0:01:29]}  Nh4+ {[%clk 0:00:06]} 1-0

[Event "2026 Biel Blitz Open"]
[Site "Biel, CH"]
[Date "2026.07.19"]
[Round "11"]
[White "Aryan Goyal"]
[Black "Baury, Noe"]
[Result "1-0"]
[Board "47"]
[TimeControl "180+2"]
[WhiteFideId "366108825"]
[BlackFideId "651086867"]
[WhiteElo "1748"]
[BlackElo "1886"]
[WhiteClock "0:00:07"]
[BlackClock "0:00:06"]
[Variant "Standard"]
[EndDate "2026.07.19"]
[EndTime "15:30:12"]

1. e4 {[%clk 0:03:02]}  e5 {[%clk 0:03:04]} 2. Nf3 {[%clk 0:03:02]}  Nc6 {[%clk 0:03:04]} 3. Bb5 {[%clk 0:03:03]}  g6 {[%clk 0:03:07]}
4. O-O {[%clk 0:03:01]}  Bg7 {[%clk 0:03:08]} 5. c3 {[%clk 0:03:02]}  Nge7 {[%clk 0:03:09]} 6. d4 {[%clk 0:03:01]}  exd4 {[%clk 0:03:11]}
7. cxd4 {[%clk 0:03:02]}  a6 {[%clk 0:03:12]} 8. Ba4 {[%clk 0:02:55]}  b5 {[%clk 0:03:11]} 9. Bb3 {[%clk 0:02:52]}  d6 {[%clk 0:03:11]}
10. Re1 {[%clk 0:02:50]}  O-O {[%clk 0:03:09]} 11. a4 {[%clk 0:02:51]}  Bg4 {[%clk 0:02:59]} 12. Be3 {[%clk 0:02:47]}  Bxf3 {[%clk 0:02:46]}
13. gxf3 {[%clk 0:02:48]}  Kh8 {[%clk 0:02:47]} 14. Nc3 {[%clk 0:02:44]}  Rb8 {[%clk 0:02:39]} 15. axb5 {[%clk 0:02:45]}  axb5 {[%clk 0:02:41]}
16. d5 {[%clk 0:02:30]}  Ne5 {[%clk 0:02:39]} 17. f4 {[%clk 0:02:30]}  Nc4 {[%clk 0:02:39]} 18. Bd4 {[%clk 0:02:19]}  Qd7 {[%clk 0:02:12]}
19. Bxg7+ {[%clk 0:02:11]}  Kxg7 {[%clk 0:02:14]} 20. Qd4+ {[%clk 0:01:30]}  Kg8 {[%clk 0:02:14]} 21. f3 {[%clk 0:01:25]}  Qh3 {[%clk 0:01:49]}
22. Qf2 {[%clk 0:01:23]}  Qd7 {[%clk 0:01:06]} 23. Ra7 {[%clk 0:01:09]}  Nb6 {[%clk 0:00:54]} 24. e5 {[%clk 0:00:37]}  Nf5 {[%clk 0:00:53]}
25. e6 {[%clk 0:00:33]}  Qe7 {[%clk 0:00:54]} 26. exf7+ {[%clk 0:00:18]}  Qxf7 {[%clk 0:00:55]} 27. Nxb5 {[%clk 0:00:18]}  Nxd5 {[%clk 0:00:21]}
28. Rxc7 {[%clk 0:00:17]}  Rxb5 {[%clk 0:00:10]} 29. Rxf7 {[%clk 0:00:18]}  Rxf7 {[%clk 0:00:11]} 30. Re8+ {[%clk 0:00:11]}  Kg7 {[%clk 0:00:12]}
31. Bxd5 {[%clk 0:00:10]}  Rxd5 {[%clk 0:00:13]} 32. Re1 {[%clk 0:00:09]}  Nd4 {[%clk 0:00:12]} 33. Re4 {[%clk 0:00:06]}  Nc6 {[%clk 0:00:09]}
34. Qc2 {[%clk 0:00:06]}  Rc5 {[%clk 0:00:10]} 35. Qd2 {[%clk 0:00:06]}  d5 {[%clk 0:00:09]} 36. Re1 {[%clk 0:00:06]}  d4 {[%clk 0:00:10]}
37. b4 {[%clk 0:00:05]}  Rcf5 {[%clk 0:00:11]} 38. Kg2 {[%clk 0:00:03]}  Rxf4 {[%clk 0:00:11]} 39. b5 {[%clk 0:00:04]}  Ne7 {[%clk 0:00:10]}
40. Re4 {[%clk 0:00:05]}  R4f6 {[%clk 0:00:10]} 41. Qxd4 {[%clk 0:00:06]}  Nf5 {[%clk 0:00:11]} 42. Qd2 {[%clk 0:00:06]}  h6 {[%clk 0:00:10]}
43. Qf2 {[%clk 0:00:06]}  g5 {[%clk 0:00:11]} 44. b6 {[%clk 0:00:06]}  Rb7 {[%clk 0:00:06]} 45. Qc5 {[%clk 0:00:06]}  Nh4+ {[%clk 0:00:06]}
46. Kh1 {[%clk 0:00:04]}  Nxf3 {[%clk 0:00:05]} 47. Re7+ {[%clk 0:00:05]}  Rf7 {[%clk 0:00:05]} 48. Rxf7+ {[%clk 0:00:06]}  Rxf7 {[%clk 0:00:04]}
49. Qd5 {[%clk 0:00:06]}  Nh4 {[%clk 0:00:03]} 50. Kg1 {[%clk 0:00:06]}  Nf3+ {[%clk 0:00:05]} 51. Kg2 {[%clk 0:00:07]}  g4 {[%clk 0:00:07]}
52. b7 {[%clk 0:00:07]}  Rf8 {[%clk 0:00:06]} 53. Qd7+ {[%clk 0:00:07]}  Kg6 {[%clk 0:00:06]} 54. Qd6+ {[%clk 0:00:07]} 1-0